[Event "*** Titled Tuesday Blitz"]
[Site "Chess.com"]
[Date "2019.06.04"]
[Round "4"]
[White "Philosopherrr"]
[Black "Valuebet2000"]
[Result "0-1"]
[WhiteElo "2364"]
[BlackElo "2542"]
[TimeControl "180+2"]
[EndTime "13:55:07 PDT"]
[Termination "Valuebet2000 won by resignation"]

1. e4 {[%clk 0:03:01.9]} 1... c6 {[%clk 0:02:59.8]} 2. d4 {[%clk 0:02:58.2]}
2... d5 {[%clk 0:03:00.9]} 3. Nc3 {[%clk 0:02:59.6]} 3... dxe4 {[%clk
0:03:01.9]} 4. Nxe4 {[%clk 0:03:00.9]} 4... Bf5 {[%clk 0:02:59.8]} 5. Ng3 {[%clk
0:02:58.7]} 5... Bg6 {[%clk 0:03:00.8]} 6. h4 {[%clk 0:02:59.4]} 6... h6 {[%clk
0:03:01.4]} 7. Nf3 {[%clk 0:02:59.6]} 7... Nd7 {[%clk 0:03:02.1]} 8. h5 {[%clk
0:02:59]} 8... Bh7 {[%clk 0:03:03.5]} 9. Bd3 {[%clk 0:02:58.7]} 9... Bxd3 {[%clk
0:03:04.9]} 10. Qxd3 {[%clk 0:03:00.6]} 10... e6 {[%clk 0:03:06.6]} 11. Bd2
{[%clk 0:03:00.6]} 11... Ngf6 {[%clk 0:03:07.5]} 12. O-O-O {[%clk 0:03:00.9]}
12... Be7 {[%clk 0:03:08.5]} 13. Rhe1 {[%clk 0:02:50.2]} 13... O-O {[%clk
0:03:06.3]} 14. Ne5 {[%clk 0:02:44.9]} 14... Nxe5 {[%clk 0:03:05]} 15. Rxe5
{[%clk 0:02:37.1]} 15... c5 {[%clk 0:03:01.2]} 16. Bc3 {[%clk 0:01:58.3]} 16...
Qc7 {[%clk 0:02:56.2]} 17. dxc5 {[%clk 0:01:40.4]} 17... Nd5 {[%clk 0:02:46.4]}
18. Rxd5 {[%clk 0:01:32.8]} 18... exd5 {[%clk 0:02:42.9]} 19. Nf5 {[%clk
0:01:31.1]} 19... Bg5+ {[%clk 0:02:22.7]} 20. Kb1 {[%clk 0:01:29.8]} 20... Rfe8
{[%clk 0:01:50.1]} 21. Nxg7 {[%clk 0:01:20.3]} 21... Re4 {[%clk 0:01:49]} 22.
Nf5 {[%clk 0:01:02.4]} 22... Qf4 {[%clk 0:01:37.4]} 23. Qxd5 {[%clk 0:00:51.8]}
23... Ree8 {[%clk 0:01:20.2]} 24. Nd6 {[%clk 0:00:47.7]} 24... Re6 {[%clk
0:00:57.8]} 25. Qxb7 {[%clk 0:00:41.2]} 25... Rd8 {[%clk 0:00:54.9]} 26. a3
{[%clk 0:00:30.2]} 26... Qxf2 {[%clk 0:00:46.2]} 27. b4 {[%clk 0:00:30.5]} 27...
a5 {[%clk 0:00:41.7]} 28. Rd3 {[%clk 0:00:18.7]} 28... axb4 {[%clk 0:00:38.1]}
29. axb4 {[%clk 0:00:19.3]} 29... Qf1+ {[%clk 0:00:33.9]} 30. Kb2 {[%clk
0:00:18]} 30... Qf4 {[%clk 0:00:22.7]} 31. Rf3 {[%clk 0:00:16.5]} 31... Qc1+
{[%clk 0:00:23.8]} 32. Kb3 {[%clk 0:00:17.9]} 32... Re7 {[%clk 0:00:25.3]} 33.
Qd5 {[%clk 0:00:14.4]} 33... Qb1+ {[%clk 0:00:26.6]} 34. Bb2 {[%clk 0:00:15]}
34... Bc1 {[%clk 0:00:28.2]} 35. Rg3+ {[%clk 0:00:14.2]} 35... Kf8 {[%clk
0:00:27.6]} 36. Qd4 {[%clk 0:00:14.8]} 36... Bxb2 {[%clk 0:00:21.8]} 37. Qxb2
{[%clk 0:00:16]} 37... Qxb2+ {[%clk 0:00:22.8]} 38. Kxb2 {[%clk 0:00:17.4]}
38... Re2 {[%clk 0:00:23.2]} 39. b5 {[%clk 0:00:17.8]} 39... Re5 {[%clk
0:00:23.5]} 40. Nb7 {[%clk 0:00:17]} 40... Rb8 {[%clk 0:00:23.9]} 41. Nd6 {[%clk
0:00:09.9]} 41... Rxc5 {[%clk 0:00:23.2]} 42. c4 {[%clk 0:00:11.3]} 42... Ke7
{[%clk 0:00:23]} 43. Ne4 {[%clk 0:00:09.4]} 43... Rxc4 {[%clk 0:00:23.2]} 44.
Nc3 {[%clk 0:00:10.8]} 44... Rh4 {[%clk 0:00:19.8]} 45. Re3+ {[%clk 0:00:10.8]}
45... Kd6 {[%clk 0:00:20.7]} 46. Rf3 {[%clk 0:00:12.2]} 46... Ke6 {[%clk
0:00:19.5]} 47. Re3+ {[%clk 0:00:13.4]} 47... Kd7 {[%clk 0:00:20.5]} 48. Rf3
{[%clk 0:00:14.2]} 48... Ke7 {[%clk 0:00:19.1]} 49. Re3+ {[%clk 0:00:14.7]}
49... Kd6 {[%clk 0:00:20.5]} 50. Rf3 {[%clk 0:00:15.8]} 50... Rb7 {[%clk
0:00:22.1]} 51. Rf6+ {[%clk 0:00:16.2]} 51... Kc5 {[%clk 0:00:21.9]} 52. Rc6+
{[%clk 0:00:16.2]} 52... Kd4 {[%clk 0:00:21.4]} 53. Rxh6 {[%clk 0:00:17.2]}
53... Rg4 {[%clk 0:00:22.1]} 54. Rd6+ {[%clk 0:00:15.7]} 54... Ke3 {[%clk
0:00:20.8]} 55. h6 {[%clk 0:00:15.4]} 55... Rxg2+ {[%clk 0:00:21.6]} 56. Kb3
{[%clk 0:00:16.8]} 56... Rh2 {[%clk 0:00:22.8]} 57. Kb4 {[%clk 0:00:14]} 57...
f5 {[%clk 0:00:23.6]} 58. b6 {[%clk 0:00:13.7]} 58... f4 {[%clk 0:00:24.4]} 59.
Re6+ {[%clk 0:00:13.9]} 59... Kd3 {[%clk 0:00:24.6]} 60. Nd5 {[%clk 0:00:14.7]}
60... f3 {[%clk 0:00:19.3]} 61. Kc5 {[%clk 0:00:15.8]} 61... Rc2+ {[%clk
0:00:19]} 62. Kd6 {[%clk 0:00:14.2]} 62... f2 {[%clk 0:00:20.2]} 63. Rf6 {[%clk
0:00:13.9]} 63... Ke4 {[%clk 0:00:16.8]} 64. Re6+ {[%clk 0:00:11.1]} 64... Kf5
{[%clk 0:00:11.1]} 65. Rf6+ {[%clk 0:00:10.5]} 65... Kg5 {[%clk 0:00:12.2]} 66.
Rf3 {[%clk 0:00:09]} 66... Kxh6 {[%clk 0:00:10.9]} 67. Rh3+ {[%clk 0:00:06.7]}
67... Kg5 {[%clk 0:00:11.6]} 68. Rf3 {[%clk 0:00:07.5]} 68... Kg4 {[%clk
0:00:12.5]} 69. Rf8 {[%clk 0:00:07.6]} 69... Kg3 {[%clk 0:00:13.3]} 70. Rg8+
{[%clk 0:00:07.5]} 70... Kh2 {[%clk 0:00:14]} 71. Rh8+ {[%clk 0:00:05.9]} 71...
Kg2 {[%clk 0:00:14.8]} 72. Rg8+ {[%clk 0:00:06.7]} 72... Kf3 {[%clk 0:00:16]}
73. Rf8+ {[%clk 0:00:07.9]} 73... Ke4 {[%clk 0:00:16.2]} 74. Rf4+ {[%clk
0:00:08.2]} 74... Kd3 {[%clk 0:00:16.6]} 75. Rf8 {[%clk 0:00:09.9]} 75... Rd2
{[%clk 0:00:17.6]} 76. Kc6 {[%clk 0:00:10.6]} 76... Rh7 {[%clk 0:00:13.4]} 77.
Nc7 {[%clk 0:00:09.5]} 77... Rc2+ {[%clk 0:00:13.4]} 78. Kd6 {[%clk 0:00:10.6]}
78... Rh6+ {[%clk 0:00:14]} 79. Ne6 {[%clk 0:00:11.8]} 79... Ke2 {[%clk
0:00:11.3]} 80. b7 {[%clk 0:00:12.1]} 80... Rb2 {[%clk 0:00:12.5]} 81. Rxf2+
{[%clk 0:00:12.6]} 81... Kxf2 {[%clk 0:00:13.1]} 82. Kc7 {[%clk 0:00:13]} 82...
Rh7+ {[%clk 0:00:13.3]} 0-1

[Event "*** Titled Tuesday Blitz"]
[Site "Chess.com"]
[Date "2019.06.04"]
[Round "4"]
[White "el-reptiliano"]
[Black "alturas_pacificas"]
[Result "1/2-1/2"]
[WhiteElo "2186"]
[BlackElo "2270"]
[TimeControl "180+2"]
[EndTime "13:55:08 PDT"]
[Termination "Game drawn - insufficient material"]

1. Nf3 {[%clk 0:03:01.9]} 1... d5 {[%clk 0:03:00.9]} 2. e3 {[%clk 0:03:02.3]}
2... Nf6 {[%clk 0:03:02.4]} 3. c4 {[%clk 0:03:02.8]} 3... c6 {[%clk 0:03:03.8]}
4. Nc3 {[%clk 0:03:01]} 4... h6 {[%clk 0:03:05]} 5. b3 {[%clk 0:03:00.2]} 5...
Bf5 {[%clk 0:03:05.6]} 6. Bb2 {[%clk 0:02:58.8]} 6... e6 {[%clk 0:03:07.1]} 7.
h3 {[%clk 0:02:57.1]} 7... Nbd7 {[%clk 0:03:08.4]} 8. g4 {[%clk 0:02:58.2]} 8...
Bg6 {[%clk 0:03:06.5]} 9. Be2 {[%clk 0:02:52.3]} 9... a5 {[%clk 0:03:06.8]} 10.
Rg1 {[%clk 0:02:53]} 10... Bd6 {[%clk 0:03:03]} 11. h4 {[%clk 0:02:51.6]} 11...
e5 {[%clk 0:02:42.1]} 12. g5 {[%clk 0:02:48]} 12... hxg5 {[%clk 0:02:41.7]} 13.
hxg5 {[%clk 0:02:49.9]} 13... Ne4 {[%clk 0:02:19.9]} 14. cxd5 {[%clk 0:02:47.8]}
14... Nxc3 {[%clk 0:02:19.5]} 15. dxc3 {[%clk 0:02:47.3]} 15... Qe7 {[%clk
0:02:10]} 16. dxc6 {[%clk 0:02:33.6]} 16... bxc6 {[%clk 0:02:11.9]} 17. Qd2
{[%clk 0:02:33.2]} 17... Nc5 {[%clk 0:02:09.6]} 18. Ba3 {[%clk 0:01:48.1]} 18...
Rd8 {[%clk 0:01:34.6]} 19. Rd1 {[%clk 0:00:50.6]} 19... Ne4 {[%clk 0:01:26.3]}
20. Bxd6 {[%clk 0:00:49]} 20... Rxd6 {[%clk 0:01:27.8]} 21. Qc1 {[%clk
0:00:49.4]} 21... Rxd1+ {[%clk 0:01:23.8]} 22. Bxd1 {[%clk 0:00:43.9]} 22... Qc5
{[%clk 0:01:21.4]} 23. Nd2 {[%clk 0:00:20.1]} 23... Nxc3 {[%clk 0:00:35.2]} 24.
Nc4 {[%clk 0:00:20.2]} 24... Ne4 {[%clk 0:00:29.9]} 25. Bf3 {[%clk 0:00:17]}
25... Qb4+ {[%clk 0:00:28.3]} 26. Kf1 {[%clk 0:00:11.7]} 26... O-O {[%clk
0:00:18.5]} 27. Bxe4 {[%clk 0:00:11.6]} 27... Bxe4 {[%clk 0:00:20.4]} 28. Qd2
{[%clk 0:00:09.2]} 28... Qxd2 {[%clk 0:00:21.2]} 29. Nxd2 {[%clk 0:00:11.1]}
29... Bd5 {[%clk 0:00:22]} 30. e4 {[%clk 0:00:11.2]} 30... Be6 {[%clk
0:00:23.3]} 31. Ke2 {[%clk 0:00:12.2]} 31... a4 {[%clk 0:00:22.9]} 32. Rc1
{[%clk 0:00:12.4]} 32... axb3 {[%clk 0:00:22.9]} 33. axb3 {[%clk 0:00:14.3]}
33... Rb8 {[%clk 0:00:21.2]} 34. Rc3 {[%clk 0:00:15.2]} 34... Bd7 {[%clk
0:00:21.2]} 35. Nc4 {[%clk 0:00:15.6]} 35... f6 {[%clk 0:00:16.1]} 36. gxf6
{[%clk 0:00:17.5]} 36... gxf6 {[%clk 0:00:17.9]} 37. Kd3 {[%clk 0:00:18.6]}
37... Kf7 {[%clk 0:00:19.2]} 38. Nd6+ {[%clk 0:00:17.6]} 38... Ke6 {[%clk
0:00:19.4]} 39. Nf5 {[%clk 0:00:18.4]} 39... Kf7 {[%clk 0:00:15.6]} 40. Ne3
{[%clk 0:00:18.2]} 40... Rc8 {[%clk 0:00:14.3]} 41. Kc2 {[%clk 0:00:19.3]} 41...
Be6 {[%clk 0:00:15.1]} 42. Nc4 {[%clk 0:00:18.2]} 42... Bxc4 {[%clk 0:00:15.5]}
43. Rxc4 {[%clk 0:00:19.5]} 43... Ke6 {[%clk 0:00:17]} 44. Kc3 {[%clk 0:00:21]}
44... f5 {[%clk 0:00:18]} 45. exf5+ {[%clk 0:00:21.7]} 45... Kxf5 {[%clk
0:00:19.9]} 46. b4 {[%clk 0:00:23.2]} 46... Ke6 {[%clk 0:00:18]} 47. Kd3 {[%clk
0:00:21.6]} 47... Kd6 {[%clk 0:00:19.1]} 48. Ke4 {[%clk 0:00:22.5]} 48... Rf8
{[%clk 0:00:19.3]} 49. Ke3 {[%clk 0:00:23.7]} 49... Rh8 {[%clk 0:00:18.8]} 50.
Rc1 {[%clk 0:00:22.6]} 50... Rh4 {[%clk 0:00:13.5]} 51. Rb1 {[%clk 0:00:21.6]}
51... Kd5 {[%clk 0:00:12.3]} 52. Rd1+ {[%clk 0:00:20.9]} 52... Kc4 {[%clk
0:00:09.1]} 53. Rc1+ {[%clk 0:00:21.9]} 53... Kb5 {[%clk 0:00:10]} 54. Rc5+
{[%clk 0:00:22.4]} 54... Kb6 {[%clk 0:00:11.4]} 55. Rxe5 {[%clk 0:00:22.6]}
55... Rxb4 {[%clk 0:00:12.9]} 56. f4 {[%clk 0:00:23.5]} 56... Kc7 {[%clk
0:00:13.3]} 57. f5 {[%clk 0:00:23.5]} 57... Kd7 {[%clk 0:00:13.7]} 58. f6 {[%clk
0:00:21.5]} 58... Rb8 {[%clk 0:00:14.6]} 59. Kf4 {[%clk 0:00:18.5]} 59... Rf8
{[%clk 0:00:13.2]} 60. Kf5 {[%clk 0:00:19.3]} 60... Kd6 {[%clk 0:00:11.7]} 61.
Re6+ {[%clk 0:00:19.7]} 61... Kd5 {[%clk 0:00:13.1]} 62. Re7 {[%clk 0:00:20.4]}
62... c5 {[%clk 0:00:14.1]} 63. Rd7+ {[%clk 0:00:21.5]} 63... Kc4 {[%clk
0:00:15.2]} 64. Ke6 {[%clk 0:00:22.5]} 64... Kb3 {[%clk 0:00:15.7]} 65. Rb7+
{[%clk 0:00:22.4]} 65... Ka3 {[%clk 0:00:14.7]} 66. Ra7+ {[%clk 0:00:18.1]}
66... Kb3 {[%clk 0:00:14]} 67. Rb7+ {[%clk 0:00:20]} 67... Ka3 {[%clk
0:00:14.8]} 68. Rf7 {[%clk 0:00:18.7]} 68... Rh8 {[%clk 0:00:10.3]} 69. Ra7+
{[%clk 0:00:15.6]} 69... Kb4 {[%clk 0:00:10.8]} 70. Rb7+ {[%clk 0:00:15.3]}
70... Ka3 {[%clk 0:00:11.1]} 71. Ra7+ {[%clk 0:00:14.9]} 71... Kb4 {[%clk
0:00:12]} 72. f7 {[%clk 0:00:15.7]} 72... c4 {[%clk 0:00:11.6]} 73. Rb7+ {[%clk
0:00:14.1]} 73... Ka3 {[%clk 0:00:12.3]} 74. Kd5 {[%clk 0:00:08.7]} 74... c3
{[%clk 0:00:11.8]} 75. Rc7 {[%clk 0:00:05.9]} 75... Kb2 {[%clk 0:00:10.7]} 76.
Rb7+ {[%clk 0:00:06.2]} 76... Ka2 {[%clk 0:00:11.7]} 77. Ra7+ {[%clk 0:00:06.1]}
77... Kb2 {[%clk 0:00:12.8]} 78. Rb7+ {[%clk 0:00:07.5]} 78... Ka2 {[%clk
0:00:13.3]} 79. Rc7 {[%clk 0:00:08.8]} 79... Kb2 {[%clk 0:00:13.5]} 80. Ke6
{[%clk 0:00:08]} 80... c2 {[%clk 0:00:12.9]} 81. Rxc2+ {[%clk 0:00:08.1]} 81...
Kxc2 {[%clk 0:00:14.1]} 82. Ke7 {[%clk 0:00:09.6]} 82... Rh7 {[%clk 0:00:15.1]}
83. Ke8 {[%clk 0:00:10.7]} 83... Rxf7 {[%clk 0:00:16.5]} 84. Kxf7 {[%clk
0:00:10.9]} 1/2-1/2

[Event "*** Titled Tuesday Blitz"]
[Site "Chess.com"]
[Date "2019.06.04"]
[Round "4"]
[White "Alexander_Donchenko"]
[Black "Barcelona_Guy"]
[Result "1/2-1/2"]
[WhiteElo "2748"]
[BlackElo "2685"]
[TimeControl "180+2"]
[EndTime "13:56:00 PDT"]
[Termination "Game drawn by agreement"]

1. e4 {[%clk 0:03:01.9]} 1... e5 {[%clk 0:03:00.8]} 2. Nf3 {[%clk 0:03:02.7]}
2... Nc6 {[%clk 0:03:01.8]} 3. Bb5 {[%clk 0:03:04.1]} 3... g6 {[%clk 0:03:00.9]}
4. c3 {[%clk 0:03:04.3]} 4... a6 {[%clk 0:03:00.7]} 5. Ba4 {[%clk 0:03:04.9]}
5... b5 {[%clk 0:02:58.6]} 6. Bb3 {[%clk 0:03:05.2]} 6... Bg7 {[%clk 0:02:55.5]}
7. O-O {[%clk 0:03:04.8]} 7... Nge7 {[%clk 0:02:56.1]} 8. d4 {[%clk 0:03:05.6]}
8... exd4 {[%clk 0:02:54.3]} 9. cxd4 {[%clk 0:03:06.6]} 9... d6 {[%clk 0:02:55]}
10. Bg5 {[%clk 0:03:02.7]} 10... h6 {[%clk 0:02:55.1]} 11. Be3 {[%clk
0:03:03.5]} 11... Bb7 {[%clk 0:02:49]} 12. Qd2 {[%clk 0:03:02.9]} 12... Qd7
{[%clk 0:02:42.5]} 13. a4 {[%clk 0:03:00.9]} 13... b4 {[%clk 0:02:40.4]} 14. a5
{[%clk 0:02:59.6]} 14... g5 {[%clk 0:02:34.7]} 15. Ba4 {[%clk 0:02:58.6]} 15...
d5 {[%clk 0:02:31.9]} 16. Ne5 {[%clk 0:02:41.2]} 16... Bxe5 {[%clk 0:02:18.7]}
17. dxe5 {[%clk 0:02:42.4]} 17... O-O-O {[%clk 0:02:20.6]} 18. Bc5 {[%clk
0:02:34.6]} 18... dxe4 {[%clk 0:02:16.8]} 19. Qe2 {[%clk 0:02:29.2]} 19... Qd3
{[%clk 0:02:15.6]} 20. Qg4+ {[%clk 0:02:29.1]} 20... Kb8 {[%clk 0:02:12.8]} 21.
Rd1 {[%clk 0:02:22.2]} 21... Qc4 {[%clk 0:02:06.2]} 22. Bxe7 {[%clk 0:02:18.2]}
22... Nxe7 {[%clk 0:02:03.2]} 23. Nd2 {[%clk 0:02:18.1]} 23... Qe6 {[%clk
0:02:01.5]} 24. Qe2 {[%clk 0:02:09.8]} 24... Qxe5 {[%clk 0:02:00.4]} 25. Nb3
{[%clk 0:02:06.4]} 25... Nf5 {[%clk 0:01:48.9]} 26. Qc4 {[%clk 0:02:00.7]} 26...
e3 {[%clk 0:01:46.1]} 27. Rf1 {[%clk 0:01:24.2]} 27... exf2+ {[%clk 0:01:19.4]}
28. Rxf2 {[%clk 0:01:24.2]} 28... Ne3 {[%clk 0:01:17.8]} 29. Qxb4 {[%clk
0:01:18.2]} 29... Nd5 {[%clk 0:00:55.3]} 30. Qc4 {[%clk 0:01:10.2]} 30... Ne3
{[%clk 0:00:48.8]} 31. Qb4 {[%clk 0:01:09.4]} 31... Nd5 {[%clk 0:00:50.1]} 32.
Qc4 {[%clk 0:01:09]} 32... Nf4 {[%clk 0:00:48.6]} 33. Nc5 {[%clk 0:01:02.7]}
33... Rd4 {[%clk 0:00:47]} 34. Nd7+ {[%clk 0:00:50.6]} 34... Rxd7 {[%clk
0:00:45.6]} 35. Bxd7 {[%clk 0:00:52.5]} 35... Rd8 {[%clk 0:00:44.2]} 36. Bc6
{[%clk 0:00:53]} 36... Nd3 {[%clk 0:00:32.3]} 37. Qb3 {[%clk 0:00:47.3]} 37...
Nc5 {[%clk 0:00:32.9]} 38. Qb4 {[%clk 0:00:47.2]} 38... Rd4 {[%clk 0:00:32.4]}
39. Qe1 {[%clk 0:00:21.6]} 39... Qxe1+ {[%clk 0:00:30.2]} 40. Rxe1 {[%clk
0:00:23.5]} 40... Bxc6 {[%clk 0:00:31.7]} 41. Rc1 {[%clk 0:00:24.3]} 41... Rd5
{[%clk 0:00:28.2]} 42. Rfc2 {[%clk 0:00:24.7]} 42... Nb3 {[%clk 0:00:27.5]} 43.
Rxc6 {[%clk 0:00:24.1]} 43... Nxc1 {[%clk 0:00:28.7]} 44. Rxc1 {[%clk 0:00:26]}
44... Rxa5 {[%clk 0:00:29.8]} 45. Rc6 {[%clk 0:00:25.8]} 45... h5 {[%clk
0:00:17.3]} 46. Rf6 {[%clk 0:00:21.7]} 46... Ra1+ {[%clk 0:00:14.2]} 47. Kf2
{[%clk 0:00:22.4]} 47... Ra2 {[%clk 0:00:15.7]} 48. Kf3 {[%clk 0:00:23.1]} 48...
Kb7 {[%clk 0:00:15.7]} 49. b4 {[%clk 0:00:22.2]} 49... Rb2 {[%clk 0:00:15.4]}
50. Rf5 {[%clk 0:00:18]} 50... Rb3+ {[%clk 0:00:14.7]} 51. Kf2 {[%clk 0:00:19]}
51... f6 {[%clk 0:00:15.3]} 52. h4 {[%clk 0:00:16.1]} 52... gxh4 {[%clk
0:00:15.7]} 53. Rxf6 {[%clk 0:00:16]} 53... Rxb4 {[%clk 0:00:16.6]} 54. Rf5
{[%clk 0:00:16.3]} 54... Rb5 {[%clk 0:00:17.4]} 55. Rf4 {[%clk 0:00:17.6]} 55...
a5 {[%clk 0:00:18.3]} 56. Rxh4 {[%clk 0:00:18.8]} 56... Kb6 {[%clk 0:00:19.7]}
57. Ke3 {[%clk 0:00:20]} 57... Rg5 {[%clk 0:00:20.4]} 58. Kd3 {[%clk 0:00:20.2]}
58... Rxg2 {[%clk 0:00:20.7]} 59. Rxh5 {[%clk 0:00:21.1]} 59... c5 {[%clk
0:00:11.9]} 60. Kc4 {[%clk 0:00:21.9]} 60... Rg4+ {[%clk 0:00:12.4]} 61. Kb3
{[%clk 0:00:23.1]} 61... Kb5 {[%clk 0:00:13.9]} 62. Rh3 {[%clk 0:00:24.1]} 62...
Rb4+ {[%clk 0:00:14.4]} 63. Kc3 {[%clk 0:00:24.4]} 63... a4 {[%clk 0:00:15.1]}
64. Rh8 {[%clk 0:00:24.4]} 64... Rb3+ {[%clk 0:00:16.4]} 65. Kc2 {[%clk
0:00:25.3]} 65... Kb4 {[%clk 0:00:18]} 66. Rb8+ {[%clk 0:00:25.7]} 66... Kc4
{[%clk 0:00:17.9]} 67. Ra8 {[%clk 0:00:26.7]} 67... Rb4 {[%clk 0:00:12.6]} 68.
Ra5 {[%clk 0:00:27.1]} 68... Kd4 {[%clk 0:00:12.5]} 69. Ra8 {[%clk 0:00:27.9]}
69... Kc4 {[%clk 0:00:08.8]} 70. Ra5 {[%clk 0:00:24.1]} 70... Kd4 {[%clk
0:00:10]} 71. Ra8 {[%clk 0:00:25.3]} 71... Kd5 {[%clk 0:00:05.8]} 72. Rd8+
{[%clk 0:00:25.1]} 72... Kc6 {[%clk 0:00:06.7]} 73. Rc8+ {[%clk 0:00:26.4]}
73... Kb6 {[%clk 0:00:07.3]} 74. Rb8+ {[%clk 0:00:26.2]} 74... Kc7 {[%clk
0:00:06.2]} 75. Ra8 {[%clk 0:00:27.4]} 75... Kb7 {[%clk 0:00:07.5]} 76. Ra5
{[%clk 0:00:27.9]} 76... Kb6 {[%clk 0:00:08.8]} 77. Ra8 {[%clk 0:00:29.4]} 77...
Kb5 {[%clk 0:00:08.9]} 78. Rb8+ {[%clk 0:00:30.3]} 78... Ka6 {[%clk 0:00:04.9]}
79. Ra8+ {[%clk 0:00:29.6]} 79... Kb7 {[%clk 0:00:05.3]} 80. Ra5 {[%clk
0:00:31]} 80... Kb6 {[%clk 0:00:06.7]} 81. Ra8 {[%clk 0:00:32.1]} 81... Rh4
{[%clk 0:00:08.1]} 82. Kb2 {[%clk 0:00:26.6]} 82... Kb5 {[%clk 0:00:08.6]} 83.
Kc2 {[%clk 0:00:26.6]} 83... Rh2+ {[%clk 0:00:09.4]} 84. Kc3 {[%clk 0:00:27.3]}
84... Rh3+ {[%clk 0:00:11.3]} 85. Kb2 {[%clk 0:00:28]} 85... Kb4 {[%clk
0:00:12.6]} 86. Rb8+ {[%clk 0:00:28.6]} 86... Kc4 {[%clk 0:00:13.9]} 87. Ra8
{[%clk 0:00:27.3]} 87... Rh2+ {[%clk 0:00:11.4]} 88. Ka3 {[%clk 0:00:25.4]}
88... Kc3 {[%clk 0:00:12.1]} 89. Rg8 {[%clk 0:00:23.9]} 89... Rh3 {[%clk
0:00:05.8]} 90. Rg2 {[%clk 0:00:21.1]} 90... c4 {[%clk 0:00:04.6]} 91. Kxa4
{[%clk 0:00:20]} 91... Kd3 {[%clk 0:00:04.3]} 92. Kb4 {[%clk 0:00:20.4]} 92...
c3 {[%clk 0:00:05.3]} 93. Kb3 {[%clk 0:00:21.8]} 93... Re3 {[%clk 0:00:05.8]}
94. Rc2 {[%clk 0:00:17.6]} 94... Kd4 {[%clk 0:00:06.4]} 95. Rh2 {[%clk
0:00:18.3]} 1/2-1/2